[Event "*** Titled Tuesday Blitz"]
[Site "Chess.com"]
[Date "2020.04.28"]
[Round "2"]
[White "Mazanchenko_Dmitry"]
[Black "Malysch"]
[Result "0-1"]
[WhiteElo "2117"]
[BlackElo "2413"]
[TimeControl "180+1"]
[EndTime "10:17:56 PDT"]
[Termination "Malysch won on time"]

1. e4 {[%clk 0:02:59.4]} 1... c5 {[%clk 0:02:58.8]} 2. Ne2 {[%clk 0:02:58.8]}
2... Nc6 {[%clk 0:02:56.2]} 3. Nbc3 {[%clk 0:02:58.3]} 3... Nf6 {[%clk
0:02:54.9]} 4. d4 {[%clk 0:02:57.8]} 4... cxd4 {[%clk 0:02:54.3]} 5. Nxd4 {[%clk
0:02:58.7]} 5... d6 {[%clk 0:02:54.5]} 6. Bg5 {[%clk 0:02:57.1]} 6... e6 {[%clk
0:02:53.7]} 7. Qd2 {[%clk 0:02:55.7]} 7... Be7 {[%clk 0:02:52.5]} 8. O-O-O
{[%clk 0:02:51.4]} 8... Nxd4 {[%clk 0:02:52.1]} 9. Qxd4 {[%clk 0:02:40.1]} 9...
O-O {[%clk 0:02:51.6]} 10. Nb5 {[%clk 0:02:27.3]} 10... Qa5 {[%clk 0:02:36.5]}
11. Bc4 {[%clk 0:02:11.7]} 11... a6 {[%clk 0:02:01.3]} 12. Bd2 {[%clk
0:02:08.8]} 12... Qd8 {[%clk 0:02:00.7]} 13. Nc3 {[%clk 0:02:03.1]} 13... b5
{[%clk 0:02:00.2]} 14. Bb3 {[%clk 0:02:02.3]} 14... Bb7 {[%clk 0:01:56.8]} 15.
f3 {[%clk 0:01:59.5]} 15... Rc8 {[%clk 0:01:55.7]} 16. Kb1 {[%clk 0:01:58.5]}
16... Qc7 {[%clk 0:01:54.8]} 17. g4 {[%clk 0:01:32.2]} 17... Nd7 {[%clk
0:01:54.2]} 18. g5 {[%clk 0:01:22.7]} 18... Ne5 {[%clk 0:01:34]} 19. f4 {[%clk
0:01:05.7]} 19... Nf3 {[%clk 0:01:27.9]} 20. Qe3 {[%clk 0:01:03.6]} 20... Nxd2+
{[%clk 0:01:27.5]} 21. Rxd2 {[%clk 0:01:03.7]} 21... b4 {[%clk 0:01:13.5]} 22.
Ne2 {[%clk 0:00:57.1]} 22... Qc6 {[%clk 0:01:04.1]} 23. Rd4 {[%clk 0:00:39]}
23... a5 {[%clk 0:01:03.8]} 24. Rc4 {[%clk 0:00:38.3]} 24... Qa6 {[%clk
0:00:58.3]} 25. Rxc8 {[%clk 0:00:33.9]} 25... Rxc8 {[%clk 0:00:59.2]} 26. g6
{[%clk 0:00:32.4]} 26... hxg6 {[%clk 0:00:55.8]} 27. c3 {[%clk 0:00:26.4]} 27...
a4 {[%clk 0:00:50.6]} 28. Bc2 {[%clk 0:00:24.1]} 28... bxc3 {[%clk 0:00:34]} 29.
Nxc3 {[%clk 0:00:21.8]} 29... Bf6 {[%clk 0:00:33.3]} 30. e5 {[%clk 0:00:14.9]}
30... Bxh1 {[%clk 0:00:21.8]} 31. exf6 {[%clk 0:00:13.8]} 31... Qf1+ {[%clk
0:00:21.5]} 32. Bd1 {[%clk 0:00:11.9]} 32... Rxc3 {[%clk 0:00:18.7]} 33. Qxc3
{[%clk 0:00:10.3]} 33... Qxd1+ {[%clk 0:00:18.4]} 34. Qc1 {[%clk 0:00:10.3]}
34... Be4+ {[%clk 0:00:18.9]} 0-1

[Event "*** Titled Tuesday Blitz"]
[Site "Chess.com"]
[Date "2020.04.28"]
[Round "2"]
[White "Slovak_fighter2000"]
[Black "Sychev_Klementy"]
[Result "0-1"]
[WhiteElo "2544"]
[BlackElo "2847"]
[TimeControl "180+1"]
[EndTime "10:17:57 PDT"]
[Termination "Sychev_Klementy won on time"]

1. d4 {[%clk 0:03:00.9]} 1... Nf6 {[%clk 0:02:57.5]} 2. Bf4 {[%clk 0:02:59]}
2... d5 {[%clk 0:02:55.2]} 3. Nf3 {[%clk 0:02:58.4]} 3... e6 {[%clk 0:02:54.9]}
4. e3 {[%clk 0:02:58.3]} 4... Bd6 {[%clk 0:02:55.1]} 5. Bg3 {[%clk 0:02:58.5]}
5... O-O {[%clk 0:02:54.7]} 6. Nbd2 {[%clk 0:02:58.4]} 6... c5 {[%clk
0:02:54.9]} 7. c3 {[%clk 0:02:58.3]} 7... Qc7 {[%clk 0:02:54.3]} 8. Bd3 {[%clk
0:02:56.9]} 8... Nbd7 {[%clk 0:02:50]} 9. e4 {[%clk 0:02:56.2]} 9... cxd4 {[%clk
0:02:33.7]} 10. cxd4 {[%clk 0:02:43.9]} 10... dxe4 {[%clk 0:02:29.4]} 11. Nxe4
{[%clk 0:02:44.8]} 11... Nxe4 {[%clk 0:02:28.5]} 12. Bxe4 {[%clk 0:02:41.3]}
12... Nf6 {[%clk 0:02:28.3]} 13. Bd3 {[%clk 0:02:35.5]} 13... Qa5+ {[%clk
0:02:17]} 14. Kf1 {[%clk 0:02:28]} 14... Rd8 {[%clk 0:02:07.7]} 15. Qe2 {[%clk
0:02:19.3]} 15... Be7 {[%clk 0:01:57.3]} 16. a3 {[%clk 0:02:11.1]} 16... Bd7
{[%clk 0:01:54.5]} 17. Ne5 {[%clk 0:01:48.3]} 17... Be8 {[%clk 0:01:40.7]} 18.
Nc4 {[%clk 0:01:45]} 18... Qh5 {[%clk 0:01:18.6]} 19. Qe3 {[%clk 0:01:27.6]}
19... Rac8 {[%clk 0:00:58.5]} 20. Be2 {[%clk 0:01:15.5]} 20... Qd5 {[%clk
0:00:56.1]} 21. b3 {[%clk 0:00:45.1]} 21... Qxd4 {[%clk 0:00:54.6]} 22. Qxd4
{[%clk 0:00:46]} 22... Rxd4 {[%clk 0:00:54.2]} 23. Be5 {[%clk 0:00:41.7]} 23...
Rd5 {[%clk 0:00:48.2]} 24. Bf4 {[%clk 0:00:33.6]} 24... b5 {[%clk 0:00:45.5]}
25. Ne3 {[%clk 0:00:23.3]} 25... Rdc5 {[%clk 0:00:44.4]} 26. g3 {[%clk
0:00:18.5]} 26... Bc6 {[%clk 0:00:41.5]} 27. f3 {[%clk 0:00:16.6]} 27... g5
{[%clk 0:00:38.2]} 28. b4 {[%clk 0:00:10.3]} 28... gxf4 {[%clk 0:00:35.7]} 29.
bxc5 {[%clk 0:00:09.3]} 29... fxe3 {[%clk 0:00:35.9]} 30. Rc1 {[%clk 0:00:08.9]}
30... Be8 {[%clk 0:00:32.8]} 31. Kg2 {[%clk 0:00:07.3]} 31... Rxc5 {[%clk
0:00:32.6]} 32. Rcd1 {[%clk 0:00:05.7]} 32... Rc2 {[%clk 0:00:31.5]} 33. Rhe1
{[%clk 0:00:04.6]} 33... Nd5 {[%clk 0:00:30.2]} 34. Rc1 {[%clk 0:00:02.4]} 34...
Rb2 {[%clk 0:00:23.7]} 35. f4 {[%clk 0:00:01.7]} 35... Bxa3 {[%clk 0:00:22.2]}
0-1

[Event "*** Titled Tuesday Blitz"]
[Site "Chess.com"]
[Date "2020.04.28"]
[Round "2"]
[White "top_bu_tz"]
[Black "FMalexhdez"]
[Result "1-0"]
[WhiteElo "2431"]
[BlackElo "2127"]
[TimeControl "180+1"]
[EndTime "10:17:57 PDT"]
[Termination "top_bu_tz won by resignation"]

1. e4 {[%clk 0:03:00.9]} 1... c5 {[%clk 0:02:59]} 2. Nf3 {[%clk 0:02:59.2]} 2...
d6 {[%clk 0:02:59.3]} 3. d4 {[%clk 0:02:59.3]} 3... cxd4 {[%clk 0:02:58.9]} 4.
Nxd4 {[%clk 0:03:00.2]} 4... Nf6 {[%clk 0:02:58.5]} 5. Nc3 {[%clk 0:03:00]} 5...
a6 {[%clk 0:02:58.6]} 6. h3 {[%clk 0:02:59.9]} 6... e5 {[%clk 0:02:58.5]} 7.
Nde2 {[%clk 0:02:59.2]} 7... b5 {[%clk 0:02:56.1]} 8. g4 {[%clk 0:02:56.8]} 8...
Bb7 {[%clk 0:02:54.9]} 9. Bg2 {[%clk 0:02:56.4]} 9... h6 {[%clk 0:02:42.2]} 10.
Ng3 {[%clk 0:02:53.1]} 10... Nbd7 {[%clk 0:02:41.1]} 11. Be3 {[%clk 0:02:52.7]}
11... g6 {[%clk 0:02:37.2]} 12. O-O {[%clk 0:02:43.2]} 12... Nc5 {[%clk
0:02:34.5]} 13. f4 {[%clk 0:02:24.6]} 13... Be7 {[%clk 0:02:02.9]} 14. fxe5
{[%clk 0:01:51.9]} 14... dxe5 {[%clk 0:02:02]} 15. Qe2 {[%clk 0:01:52.4]} 15...
Qc7 {[%clk 0:01:51.1]} 16. Nd5 {[%clk 0:01:44.4]} 16... Nxd5 {[%clk 0:01:34.1]}
17. exd5 {[%clk 0:01:43.9]} 17... Bd6 {[%clk 0:01:15.1]} 18. Kh1 {[%clk
0:01:33.4]} 18... O-O-O {[%clk 0:01:05.2]} 19. c4 {[%clk 0:01:18.8]} 19... b4
{[%clk 0:01:02.1]} 20. Bxc5 {[%clk 0:01:06.9]} 20... Bxc5 {[%clk 0:00:58.1]} 21.
Ne4 {[%clk 0:01:07.4]} 21... h5 {[%clk 0:00:53.5]} 22. g5 {[%clk 0:01:01.4]}
22... f5 {[%clk 0:00:46.5]} 23. gxf6 {[%clk 0:01:00.5]} 23... Bd4 {[%clk
0:00:42.6]} 24. Qd2 {[%clk 0:00:24.3]} 24... Kb8 {[%clk 0:00:41.6]} 25. Qxb4
{[%clk 0:00:22.9]} 25... g5 {[%clk 0:00:35.6]} 26. f7 {[%clk 0:00:19.8]} 26...
Rdf8 {[%clk 0:00:26.5]} 27. c5 {[%clk 0:00:13.8]} 27... g4 {[%clk 0:00:24.3]}
28. c6 {[%clk 0:00:12.3]} 28... gxh3 {[%clk 0:00:23.3]} 29. Bf3 {[%clk
0:00:11.1]} 29... Ka7 {[%clk 0:00:20.5]} 30. cxb7 {[%clk 0:00:10.8]} 30... Rxf7
{[%clk 0:00:18.5]} 31. d6 {[%clk 0:00:09.2]} 31... Qd7 {[%clk 0:00:15.2]} 32.
Nc5 {[%clk 0:00:08]} 32... Rxf3 {[%clk 0:00:13.3]} 33. Nxd7 {[%clk 0:00:06.2]}
33... Rxf1+ {[%clk 0:00:11.1]} 34. Rxf1 {[%clk 0:00:07.1]} 34... Rg8 {[%clk
0:00:08.8]} 35. b8=Q+ {[%clk 0:00:07.1]} 1-0

[Event "*** Titled Tuesday Blitz"]
[Site "Chess.com"]
[Date "2020.04.28"]
[Round "2"]
[White "MishkaFighter"]
[Black "Oleksandr_Bortnyk"]
[Result "1-0"]
[WhiteElo "2603"]
[BlackElo "2998"]
[TimeControl "180+1"]
[EndTime "10:17:58 PDT"]
[Termination "MishkaFighter won by checkmate"]

1. d4 {[%clk 0:03:00.9]} 1... d6 {[%clk 0:02:58.5]} 2. Nf3 {[%clk 0:02:58.5]}
2... Nf6 {[%clk 0:02:50.8]} 3. g3 {[%clk 0:02:57]} 3... g6 {[%clk 0:02:50]} 4.
Bg2 {[%clk 0:02:57.2]} 4... Bg7 {[%clk 0:02:48.6]} 5. O-O {[%clk 0:02:57.7]}
5... O-O {[%clk 0:02:47.9]} 6. c4 {[%clk 0:02:57.7]} 6... Bf5 {[%clk 0:02:48]}
7. Qb3 {[%clk 0:02:49.4]} 7... Qc8 {[%clk 0:02:31.8]} 8. Nc3 {[%clk 0:02:47]}
8... Nc6 {[%clk 0:02:05.3]} 9. Rd1 {[%clk 0:02:44.1]} 9... Rb8 {[%clk
0:01:43.5]} 10. Qa4 {[%clk 0:02:34.7]} 10... a6 {[%clk 0:01:34.2]} 11. d5 {[%clk
0:02:30.2]} 11... Nd8 {[%clk 0:01:34.3]} 12. Nd4 {[%clk 0:02:29.6]} 12... Bh3
{[%clk 0:01:34.3]} 13. e4 {[%clk 0:02:22.9]} 13... c5 {[%clk 0:01:31.5]} 14.
Nde2 {[%clk 0:01:51.8]} 14... b5 {[%clk 0:01:24.6]} 15. Qc2 {[%clk 0:01:32.8]}
15... bxc4 {[%clk 0:01:15.5]} 16. Qa4 {[%clk 0:01:12.7]} 16... Rb4 {[%clk
0:01:07.5]} 17. Qc2 {[%clk 0:01:08]} 17... Bxg2 {[%clk 0:00:45.5]} 18. Kxg2
{[%clk 0:01:08.6]} 18... Nd7 {[%clk 0:00:46.4]} 19. f4 {[%clk 0:01:01]} 19...
Qb7 {[%clk 0:00:40]} 20. Rb1 {[%clk 0:00:58.8]} 20... e6 {[%clk 0:00:37.3]} 21.
a3 {[%clk 0:00:50.5]} 21... Rb3 {[%clk 0:00:36.6]} 22. dxe6 {[%clk 0:00:37.9]}
22... Nxe6 {[%clk 0:00:37.5]} 23. Nd5 {[%clk 0:00:38.2]} 23... Re8 {[%clk
0:00:16.6]} 24. Qxc4 {[%clk 0:00:33.4]} 24... Rxa3 {[%clk 0:00:10.2]} 25. Nec3
{[%clk 0:00:30.3]} 25... Rb3 {[%clk 0:00:08.9]} 26. Ra1 {[%clk 0:00:25.5]} 26...
Nd4 {[%clk 0:00:03.2]} 27. Qxa6 {[%clk 0:00:22.1]} 27... Qxa6 {[%clk 0:00:02.7]}
28. Rxa6 {[%clk 0:00:23]} 28... Bf8 {[%clk 0:00:02.3]} 29. Ra7 {[%clk
0:00:16.6]} 29... Nb6 {[%clk 0:00:01.3]} 30. Nf6+ {[%clk 0:00:15.9]} 30... Kh8
{[%clk 0:00:01.9]} 31. Nxe8 {[%clk 0:00:16.8]} 31... d5 {[%clk 0:00:01.3]} 32.
Rxf7 {[%clk 0:00:17]} 32... Bh6 {[%clk 0:00:01.4]} 33. f5 {[%clk 0:00:15.7]}
33... Bxc1 {[%clk 0:00:01]} 34. Rf8# {[%clk 0:00:15.8]} 1-0

[Event "*** Titled Tuesday Blitz"]
[Site "Chess.com"]
[Date "2020.04.28"]
[Round "2"]
[White "keepitcool9499"]
[Black "maciek_92"]
[Result "1-0"]
[WhiteElo "2459"]
[BlackElo "2673"]
[TimeControl "180+1"]
[EndTime "10:17:59 PDT"]
[Termination "keepitcool9499 won by resignation"]

1. d4 {[%clk 0:02:54.5]} 1... Nf6 {[%clk 0:02:59.6]} 2. c4 {[%clk 0:02:53.8]}
2... e6 {[%clk 0:03:00]} 3. Nc3 {[%clk 0:02:53.2]} 3... Bb4 {[%clk 0:03:00.6]}
4. Bd2 {[%clk 0:02:52.6]} 4... O-O {[%clk 0:02:59.6]} 5. Nf3 {[%clk 0:02:53]}
5... d5 {[%clk 0:03:00]} 6. e3 {[%clk 0:02:53.4]} 6... c6 {[%clk 0:03:00.6]} 7.
Bd3 {[%clk 0:02:52.3]} 7... Nbd7 {[%clk 0:03:01.2]} 8. a3 {[%clk 0:02:52.1]}
8... Bd6 {[%clk 0:03:00.7]} 9. O-O {[%clk 0:02:51.3]} 9... e5 {[%clk 0:02:54.7]}
10. dxe5 {[%clk 0:02:50.4]} 10... Nxe5 {[%clk 0:02:55.6]} 11. Nxe5 {[%clk
0:02:50.8]} 11... Bxe5 {[%clk 0:02:56.5]} 12. cxd5 {[%clk 0:02:51.3]} 12...
Bxh2+ {[%clk 0:02:35.9]} 13. Kxh2 {[%clk 0:02:18.4]} 13... Ng4+ {[%clk
0:02:34.2]} 14. Kg3 {[%clk 0:02:15.9]} 14... h5 {[%clk 0:02:05.1]} 15. f4 {[%clk
0:01:49.6]} 15... cxd5 {[%clk 0:01:57.7]} 16. Rh1 {[%clk 0:01:40.8]} 16... g6
{[%clk 0:01:50.8]} 17. Ne2 {[%clk 0:01:28.8]} 17... Re8 {[%clk 0:01:49.5]} 18.
Nd4 {[%clk 0:01:22.7]} 18... Qf6 {[%clk 0:01:14.8]} 19. Qf3 {[%clk 0:01:06.8]}
19... Nh6 {[%clk 0:00:48.1]} 20. Rae1 {[%clk 0:00:54.6]} 20... Bg4 {[%clk
0:00:47]} 21. Qxd5 {[%clk 0:00:50.1]} 21... Rad8 {[%clk 0:00:46.2]} 22. Qg5
{[%clk 0:00:43.7]} 22... Qg7 {[%clk 0:00:46.8]} 23. Bc3 {[%clk 0:00:41.1]} 23...
Qf8 {[%clk 0:00:34.1]} 24. Bxg6 {[%clk 0:00:30.8]} 24... f6 {[%clk 0:00:31.9]}
25. Qb5 {[%clk 0:00:16.2]} 25... Re7 {[%clk 0:00:25]} 26. Bxh5 {[%clk
0:00:13.4]} 26... Qg7 {[%clk 0:00:25.3]} 27. Kf2 {[%clk 0:00:08.8]} 27... Be6
{[%clk 0:00:11.6]} 28. Bf3 {[%clk 0:00:08.6]} 28... a6 {[%clk 0:00:10.1]} 29.
Qh5 {[%clk 0:00:08.7]} 29... Kh7 {[%clk 0:00:09.5]} 30. Nxe6 {[%clk 0:00:08.3]}
30... Rxe6 {[%clk 0:00:10.4]} 31. Qxh6+ {[%clk 0:00:07]} 31... Qxh6 {[%clk
0:00:10.1]} 32. Rxh6+ {[%clk 0:00:07.9]} 32... Kxh6 {[%clk 0:00:10.7]} 33. Rh1+
{[%clk 0:00:08]} 33... Kg6 {[%clk 0:00:10.6]} 34. g4 {[%clk 0:00:08.2]} 34... f5
{[%clk 0:00:11]} 35. gxf5+ {[%clk 0:00:08.4]} 35... Kxf5 {[%clk 0:00:11.9]} 36.
Rh5+ {[%clk 0:00:08.4]} 36... Kg6 {[%clk 0:00:12.1]} 37. f5+ {[%clk 0:00:08.7]}
37... Kf7 {[%clk 0:00:12.7]} 38. fxe6+ {[%clk 0:00:09.6]} 38... Kxe6 {[%clk
0:00:13.3]} 39. Re5+ {[%clk 0:00:09.7]} 39... Kd6 {[%clk 0:00:13.5]} 1-0

[Event "*** Titled Tuesday Blitz"]
[Site "Chess.com"]
[Date "2020.04.28"]
[Round "2"]
[White "anon132639"]
[Black "petincash"]
[Result "1-0"]
[WhiteElo "2667"]
[BlackElo "2376"]
[TimeControl "180+1"]
[EndTime "10:18:00 PDT"]
[Termination "anon132639 won on time"]

1. d4 {[%clk 0:03:00.9]} 1... Nf6 {[%clk 0:02:58.2]} 2. Nf3 {[%clk 0:03:01.2]}
2... g6 {[%clk 0:02:58.6]} 3. c4 {[%clk 0:03:01.2]} 3... Bg7 {[%clk 0:02:59.1]}
4. Nc3 {[%clk 0:03:01.8]} 4... O-O {[%clk 0:02:59.6]} 5. e4 {[%clk 0:03:02.4]}
5... d6 {[%clk 0:03:00.1]} 6. h3 {[%clk 0:03:03]} 6... e5 {[%clk 0:02:57.3]} 7.
d5 {[%clk 0:03:03.2]} 7... a5 {[%clk 0:02:55.4]} 8. g4 {[%clk 0:03:01.7]} 8...
Na6 {[%clk 0:02:54.9]} 9. Be3 {[%clk 0:03:01.8]} 9... Nd7 {[%clk 0:02:54.5]} 10.
a3 {[%clk 0:03:01.1]} 10... f5 {[%clk 0:01:39.7]} 11. gxf5 {[%clk 0:02:59.4]}
11... gxf5 {[%clk 0:01:40.1]} 12. exf5 {[%clk 0:02:59.7]} 12... e4 {[%clk
0:01:38]} 13. Nd4 {[%clk 0:02:58.3]} 13... Ne5 {[%clk 0:01:36]} 14. Be2 {[%clk
0:02:37.3]} 14... Nc5 {[%clk 0:01:21.5]} 15. Rg1 {[%clk 0:02:25.6]} 15... Bxf5
{[%clk 0:01:03.3]} 16. Nxf5 {[%clk 0:02:20]} 16... Rxf5 {[%clk 0:01:03.3]} 17.
Bxc5 {[%clk 0:02:06.3]} 17... dxc5 {[%clk 0:00:52.2]} 18. Nxe4 {[%clk
0:02:06.6]} 18... Qh4 {[%clk 0:00:49]} 19. Qc2 {[%clk 0:01:43.3]} 19... Rf4
{[%clk 0:00:39.6]} 20. Ng3 {[%clk 0:01:18.1]} 20... Raf8 {[%clk 0:00:22.3]} 21.
O-O-O {[%clk 0:01:06.2]} 21... Kh8 {[%clk 0:00:22.5]} 22. Nh5 {[%clk 0:00:59.9]}
22... Bh6 {[%clk 0:00:12.3]} 23. Nxf4 {[%clk 0:00:56.2]} 23... Rxf4 {[%clk
0:00:12.6]} 24. Kb1 {[%clk 0:00:55.3]} 24... Rxf2 {[%clk 0:00:12.5]} 25. Rdf1
{[%clk 0:00:47.2]} 25... Bg7 {[%clk 0:00:10]} 26. Rxf2 {[%clk 0:00:41]} 26...
Qxf2 {[%clk 0:00:09.9]} 27. Rf1 {[%clk 0:00:41.4]} 27... Qd4 {[%clk 0:00:09.8]}
28. Qf5 {[%clk 0:00:26.6]} 28... h6 {[%clk 0:00:04.5]} 29. Rf4 {[%clk
0:00:07.4]} 29... Qd2 {[%clk 0:00:01.8]} 30. Qc8+ {[%clk 0:00:04.7]} 30... Kh7
{[%clk 0:00:01.4]} 31. Qf5+ {[%clk 0:00:05.4]} 31... Kh8 {[%clk 0:00:01]} 32.
Rf2 {[%clk 0:00:04.3]} 1-0

[Event "*** Titled Tuesday Blitz"]
[Site "Chess.com"]
[Date "2020.04.28"]
[Round "2"]
[White "Kobalia"]
[Black "Kopytkin"]
[Result "1-0"]
[WhiteElo "2712"]
[BlackElo "2384"]
[TimeControl "180+1"]
[EndTime "10:18:00 PDT"]
[Termination "Kobalia won on time"]

1. e4 {[%clk 0:03:00.9]} 1... Nf6 {[%clk 0:02:59]} 2. e5 {[%clk 0:03:00.4]} 2...
Nd5 {[%clk 0:02:59.1]} 3. d4 {[%clk 0:03:00.9]} 3... d6 {[%clk 0:02:59]} 4. Nf3
{[%clk 0:03:01.1]} 4... g6 {[%clk 0:02:58.9]} 5. Bc4 {[%clk 0:03:00.2]} 5... Nb6
{[%clk 0:02:59.1]} 6. Bb3 {[%clk 0:03:00.2]} 6... d5 {[%clk 0:02:59.7]} 7. O-O
{[%clk 0:02:55.9]} 7... Bg7 {[%clk 0:02:59.8]} 8. h3 {[%clk 0:02:55.6]} 8... Nc6
{[%clk 0:02:59.6]} 9. c3 {[%clk 0:02:54.8]} 9... f6 {[%clk 0:02:59.9]} 10. exf6
{[%clk 0:02:53.9]} 10... exf6 {[%clk 0:03:00.2]} 11. Re1+ {[%clk 0:02:52.2]}
11... Kf7 {[%clk 0:03:00.5]} 12. a4 {[%clk 0:02:51.7]} 12... Re8 {[%clk
0:02:46.2]} 13. Rxe8 {[%clk 0:02:48.8]} 13... Qxe8 {[%clk 0:02:45.9]} 14. a5
{[%clk 0:02:48.6]} 14... Nc4 {[%clk 0:02:46]} 15. Nbd2 {[%clk 0:02:46.3]} 15...
N6xa5 {[%clk 0:02:35.5]} 16. Ba2 {[%clk 0:02:37.1]} 16... Be6 {[%clk 0:02:29.7]}
17. b4 {[%clk 0:02:30.3]} 17... Nxd2 {[%clk 0:02:21.9]} 18. Bxd2 {[%clk
0:02:11.3]} 18... Nc4 {[%clk 0:02:17.6]} 19. Bf4 {[%clk 0:02:08.5]} 19... Nd6
{[%clk 0:02:09.1]} 20. Ne1 {[%clk 0:02:02.8]} 20... Ne4 {[%clk 0:02:00.8]} 21.
Qf3 {[%clk 0:01:58.9]} 21... Qc6 {[%clk 0:01:54.4]} 22. Rc1 {[%clk 0:01:56.6]}
22... a5 {[%clk 0:01:52.8]} 23. Nd3 {[%clk 0:01:52.6]} 23... axb4 {[%clk
0:01:43.8]} 24. cxb4 {[%clk 0:01:49]} 24... Nc3 {[%clk 0:01:24.5]} 25. b5 {[%clk
0:01:31]} 25... Qxb5 {[%clk 0:01:17.8]} 26. Rxc3 {[%clk 0:01:30.5]} 26... Rxa2
{[%clk 0:01:16.8]} 27. Rxc7+ {[%clk 0:01:27.2]} 27... Kg8 {[%clk 0:01:15]} 28.
Nc5 {[%clk 0:01:23.7]} 28... Ra1+ {[%clk 0:01:03.1]} 29. Kh2 {[%clk 0:01:22.4]}
29... Qe8 {[%clk 0:00:30.8]} 30. Rxb7 {[%clk 0:00:59.1]} 30... Ra8 {[%clk
0:00:25.7]} 31. Bd6 {[%clk 0:00:47.8]} 31... Bf7 {[%clk 0:00:23.5]} 32. Re7
{[%clk 0:00:47.3]} 32... Qd8 {[%clk 0:00:20.3]} 33. Nb7 {[%clk 0:00:30.6]} 33...
Qb6 {[%clk 0:00:20]} 34. Rxf7 {[%clk 0:00:26.9]} 34... Ra7 {[%clk 0:00:08.5]}
35. Qxd5 {[%clk 0:00:24.3]} 35... Kh8 {[%clk 0:00:07.7]} 36. Rd7 {[%clk
0:00:21]} 36... Rxb7 {[%clk 0:00:01.8]} 37. Rxb7 {[%clk 0:00:19.6]} 1-0

[Event "*** Titled Tuesday Blitz"]
[Site "Chess.com"]
[Date "2020.04.28"]
[Round "2"]
[White "Sergey85Rodchenkov"]
[Black "Khamrakulov_Djurabek"]
[Result "1/2-1/2"]
[WhiteElo "2546"]
[BlackElo "2815"]
[TimeControl "180+1"]
[EndTime "10:18:02 PDT"]
[Termination "Game drawn by agreement"]

1. e4 {[%clk 0:03:00.9]} 1... c6 {[%clk 0:02:59.9]} 2. d4 {[%clk 0:02:54.6]}
2... d5 {[%clk 0:03:00.8]} 3. exd5 {[%clk 0:02:54.7]} 3... cxd5 {[%clk 0:03:01]}
4. Bd3 {[%clk 0:02:55.3]} 4... Nc6 {[%clk 0:03:00.4]} 5. c3 {[%clk 0:02:54.6]}
5... Qc7 {[%clk 0:02:57.2]} 6. h3 {[%clk 0:02:54.2]} 6... Nf6 {[%clk 0:02:53.2]}
7. Nf3 {[%clk 0:02:54.1]} 7... g6 {[%clk 0:02:53.1]} 8. Qc2 {[%clk 0:02:54.2]}
8... Bg7 {[%clk 0:02:44.9]} 9. Kf1 {[%clk 0:02:54.3]} 9... O-O {[%clk
0:02:44.4]} 10. Nbd2 {[%clk 0:02:52.6]} 10... Bd7 {[%clk 0:02:43.3]} 11. Nb3
{[%clk 0:02:52.3]} 11... b6 {[%clk 0:02:38.3]} 12. Be3 {[%clk 0:02:49.2]} 12...
a5 {[%clk 0:02:38.2]} 13. Nbd2 {[%clk 0:02:48.3]} 13... Rfc8 {[%clk 0:02:36.3]}
14. Qd1 {[%clk 0:02:46.4]} 14... Bf5 {[%clk 0:02:31.5]} 15. Be2 {[%clk
0:02:39.4]} 15... a4 {[%clk 0:02:29.9]} 16. a3 {[%clk 0:02:37.7]} 16... Ne4
{[%clk 0:02:19.6]} 17. g4 {[%clk 0:02:37.3]} 17... Nxd2+ {[%clk 0:02:13.8]} 18.
Qxd2 {[%clk 0:02:37.1]} 18... Be4 {[%clk 0:02:12.3]} 19. Rg1 {[%clk 0:02:30.7]}
19... Na5 {[%clk 0:02:12.1]} 20. Re1 {[%clk 0:02:25.3]} 20... Nc4 {[%clk
0:01:51.6]} 21. Bxc4 {[%clk 0:02:24.4]} 21... Qxc4+ {[%clk 0:01:50.8]} 22. Kg2
{[%clk 0:02:21.2]} 22... f5 {[%clk 0:01:46.4]} 23. Kg3 {[%clk 0:02:19.1]} 23...
fxg4 {[%clk 0:01:43]} 24. hxg4 {[%clk 0:02:18.9]} 24... Rf8 {[%clk 0:01:38.9]}
25. Ng5 {[%clk 0:02:06.1]} 25... e5 {[%clk 0:01:31.9]} 26. dxe5 {[%clk
0:01:47.2]} 26... h6 {[%clk 0:01:14.8]} 27. Nxe4 {[%clk 0:01:42.8]} 27... dxe4
{[%clk 0:00:54.9]} 28. Bd4 {[%clk 0:01:33.2]} 28... Rf3+ {[%clk 0:00:50.5]} 29.
Kg2 {[%clk 0:01:33.7]} 29... Qd5 {[%clk 0:00:41]} 30. Qe2 {[%clk 0:01:22.6]}
30... Rf4 {[%clk 0:00:31.6]} 31. Be3 {[%clk 0:01:21.1]} 31... Rf3 {[%clk
0:00:29.2]} 32. Bd4 {[%clk 0:01:21.1]} 32... Rf4 {[%clk 0:00:29.2]} 33. Be3
{[%clk 0:01:20.6]} 33... Rf7 {[%clk 0:00:29.8]} 34. Bd4 {[%clk 0:01:19.5]} 34...
e3+ {[%clk 0:00:29.8]} 35. f3 {[%clk 0:01:17]} 35... Raf8 {[%clk 0:00:29.6]} 36.
Rgf1 {[%clk 0:01:17]} 36... Bxe5 {[%clk 0:00:29.4]} 37. Qxe3 {[%clk 0:01:15.4]}
37... Bxd4 {[%clk 0:00:28.2]} 38. Qxd4 {[%clk 0:01:09.8]} 38... Qxd4 {[%clk
0:00:26.9]} 39. cxd4 {[%clk 0:01:09.7]} 39... Rd8 {[%clk 0:00:25.8]} 40. Re6
{[%clk 0:01:08.2]} 40... Kg7 {[%clk 0:00:25.6]} 41. Rd1 {[%clk 0:01:05.3]} 41...
Rfd7 {[%clk 0:00:25.7]} 42. Rxb6 {[%clk 0:01:03.3]} 42... Rxd4 {[%clk
0:00:25.7]} 43. Rxd4 {[%clk 0:01:03.2]} 43... Rxd4 {[%clk 0:00:26.6]} 44. Kg3
{[%clk 0:01:02.3]} 44... g5 {[%clk 0:00:27]} 45. b3 {[%clk 0:00:58.7]} 45... Rd3
{[%clk 0:00:25.3]} 46. Rb7+ {[%clk 0:00:57.6]} 46... Kg6 {[%clk 0:00:24]} 47.
Rb6+ {[%clk 0:00:57.6]} 47... Kg7 {[%clk 0:00:23.8]} 48. bxa4 {[%clk 0:00:55.9]}
48... Rxa3 {[%clk 0:00:24]} 49. Ra6 {[%clk 0:00:51.9]} 49... Ra2 {[%clk
0:00:24.3]} 50. a5 {[%clk 0:00:51.8]} 50... Kh7 {[%clk 0:00:24]} 51. Ra7+ {[%clk
0:00:51]} 51... Kg6 {[%clk 0:00:24.1]} 52. a6 {[%clk 0:00:50.1]} 52... Kf6
{[%clk 0:00:24.3]} 53. Ra8 {[%clk 0:00:48.3]} 53... Kg6 {[%clk 0:00:23.9]} 54.
a7 {[%clk 0:00:45.2]} 54... Kg7 {[%clk 0:00:23.3]} 1/2-1/2